Cogmind - Beta 13 @@@ ROGUE MODE // 2024.03.31 @ 00:27:25 Player: Isopropylpod Result: Destroyed by G-47 Trooper with Particle Gun Performance ------------- Evolutions (2) 1000 Regions Visited (4) 800 Robots Destroyed (40) 200 Value Destroyed (1037) 1037 Prototype IDs (0) 0 Alien Tech Used (0) 0 Bonus (117) 117 TOTAL SCORE: 3154 Bonus ------- Follower Combat Kills 117 Cogmind --------- Core Integrity 0/550 Matter 300/300 Energy 100/100 System Corruption 3% Temperature Cool (9) Movement Core (350) Ox6 Location -8/Materials Parts ------- > --- POWER (1) -------- (None) > --- PROPULSION (5) --- (None) > --- UTILITY (3) ------ Large Storage Unit > --- WEAPON (2) ------- (None) > --- INVENTORY (15) --- Structural Scanner Hardened Medium Armor Plating Hardened Medium Armor Plating Field Laser Peak State ------------ > --- POWER ------------ Light Angular Momentum Engine > --- PROPULSION ------- Aluminum Leg Aluminum Leg Improved Aluminum Leg Carbon-fiber Leg Carbon-fiber Leg > --- UTILITY ---------- Improved Heat Sink Small Storage Unit Hardened Medium Armor Plating > --- WEAPON ----------- Field Laser Field Laser > --- INVENTORY -------- Ion Engine Aluminum Leg Hardened Medium Armor Plating Hardened Medium Armor Plating Field Laser Field Laser [Rating: 29] Favorites ----------- Power Light Nuclear Core Engine Light Angular Momentum Engine Power Core Light Nuclear Core Propulsion Aluminum Leg Leg Aluminum Leg Utility Small Storage Unit Device Improved Heat Sink Storage Small Storage Unit Hackware Hacking Suite Protection Hardened Medium Armor Plating Weapon Field Laser Energy Gun Field Laser Ballistic Gun Assault Rifle Launcher Rocket Launcher Build | -11 -10 -10 -9 -8 ------- Run | Yrd Mat Min Mat Mat Slots Evolved 4 | . . . 2 2 Power . | . . . . . Propulsion 3 | . . . 2 1 Utility 1 | . . . . 1 Weapon . | . . . . . Parts Attached 42 | 6 4 9 15 8 Power 6 | 1 . 3 1 1 Engine 3 | 1 . 1 1 . Core 3 | . . 2 . 1 Reactor . | . . . . . Propulsion 21 | 2 3 3 9 4 Treads . | . . . . . Leg 21 | 2 3 3 9 4 Wheel . | . . . . . Hover . | . . . . . Flight . | . . . . . Utility 7 | 1 1 2 1 2 Device 3 | . . 2 1 . Storage 2 | 1 . . . 1 Processor . | . . . . . Hackware 1 | . 1 . . . Protection 1 | . . . . 1 Artifact . | . . . . . Weapon 8 | 2 . 1 4 1 Energy Gun 4 | . . 1 2 1 Energy Cannon . | . . . . . Ballistic Gun 3 | 2 . . 1 . Ballistic Cannon . | . . . . . Launcher 1 | . . . 1 . Special Weapon . | . . . . . Impact Weapon . | . . . . . Slashing Weapon . | . . . . . Piercing Weapon . | . . . . . Special Melee Weapon . | . . . . . Unidentified Prototypes . | . . . . . Parts Lost 19 | . 1 2 1 15 Power 3 | . . 1 . 2 Propulsion 9 | . . . 1 8 Utility 3 | . 1 . . 2 Weapon 4 | . . 1 . 3 Highest Loss Streak 9 | . 1 1 1 9 To Critical Strikes . | . . . . . Average Slot Usage (%) 91 | . 90 91 96 85 Engine 6 | . 14 3 6 5 Core 4 | . . 10 4 . Leg 34 | . 28 28 43 38 Device 7 | . . 10 11 7 Storage 11 | . 14 14 11 9 Hackware 1 | . 5 . . . Protection 1 | . . . . 7 Energy Gun 11 | . . 10 17 15 Ballistic Gun 9 | . 28 12 . . Naked Turns . | . . . . . Heaviest Build 44 | 13 13 16 21 44 Greatest Support 63 | 20 20 20 53 63 Greatest Overweight (x) 11 | . . . . 11 Average Overweight (x) . | . . . . . Largest Inventory Capacity 15 | 8 8 8 8 15 Average Capacity 8 | 7 8 8 8 12 Most Carried 8 | . 7 8 8 8 Average Carried 6 | . 4 7 7 5 Final Capacity 15 | 8 8 8 8 15 Final Carried 8 | . 7 8 8 4 Class Distribution -------------------- 68% | Scavenger-Mutant 31% | Mutant Dominant Class ---------------- Mutant | -10/Materials Scavenger-Mutant | -10/Mines Scavenger-Mutant | -9/Materials Scavenger-Mutant | -8/Materials Resources | -11 -10 -10 -9 -8 ----------- Run | Yrd Mat Min Mat Mat Matter Collected 871 | 167 306 187 146 65 Remotely . | . . . . . Salvage Created 1581 | . 462 227 419 473 Parts 71 | . 20 13 23 15 Haulers Intercepted . | . . . . . Recyclers Shooed 7 | . 4 1 1 1 Parts Field Recycled . | . . . . . Retrieved Matter . | . . . . . Parts Self-Destructed . | . . . . . Prevented . | . . . . . Kills | -11 -10 -10 -9 -8 ------- Run | Yrd Mat Min Mat Mat Combat Hostiles Destroyed 30 | . 5 7 11 7 Guns 28 | . 5 7 10 6 AOE 1 | . . . 1 . Classes Destroyed 8 | . 4 1 3 . Worker 2 | . 1 . . 1 Recycler 6 | . 4 . 1 1 Operator 1 | . 1 . . . Watcher 1 | . . . 1 . Swarmer 8 | . . 3 5 . Grunt 16 | . 5 4 3 4 Brawler 2 | . . . 1 1 Sentry 4 | . . . 2 2 Best Kill Streak 6 | . 6 3 4 4 Combat Bots Only 4 | . 2 3 4 3 Max Kills in Single Turn 2 | . 1 2 2 1 Gunslinging 1 | . . 1 . . Exploded 1 | . . . 1 . Melee . | . . . . . Uniques/NPCs Destroyed . | . . . . . Combat | -11 -10 -10 -9 -8 -------- Run | Yrd Mat Min Mat Mat Hostile Shots Fired 300 | . 41 40 58 161 Missed 71 | . 9 12 16 34 Damage Taken 3091 | . 388 318 395 1990 Core 744 | . 73 42 70 559 Absorbed by Shields . | . . . . . Core Remaining (%) 78 | 100 . 54 82 . Volleys Fired 153 | . 49 36 34 34 Largest 2 | . 2 2 2 2 Hottest 126 | . 40 85 126 126 Shots Fired 279 | . 98 62 51 68 Gun 278 | . 98 62 50 68 Cannon . | . . . . . Launcher 1 | . . . 1 . Special . | . . . . . Kinetic 141 | . 98 43 . . Thermal 137 | . . 19 50 68 Explosive 1 | . . . 1 . Electromagnetic . | . . . . . Robot Hit Streak 10 | . 6 7 8 10 Robot Miss Streak 5 | . 5 3 3 5 Penetration Max . | . . . . . Secondary Targets 3 | . 1 1 . 1 Max Gunslinging Chain 1 | . 1 1 . 1 Shots Hit Robots 177 | . 57 42 34 44 Core Hits 73 | . 22 15 16 20 Critical Kills 2 | . 1 1 . . Critical Parts Destroyed . | . . . . . Critical Strikes 4 | . 1 1 . 2 Burn 2 | . . . . 2 Destroy 2 | . 1 1 . . Melee Attacks . | . . . . . Impact . | . . . . . Slashing . | . . . . . Piercing . | . . . . . Sneak Attacks . | . . . . . Combat Hostiles . | . . . . . Follow-up Attacks . | . . . . . Damage Inflicted 2623 | . 598 577 652 796 Guns 2552 | . 598 567 603 784 Cannons . | . . . . . Explosions 48 | . . . 48 . Melee . | . . . . . Ramming 23 | . . 10 1 12 Kinetic 934 | . 598 336 . . Thermal 1618 | . . 231 603 784 Explosive 48 | . . . 48 . Electromagnetic . | . . . . . Impact . | . . . . . Slashing . | . . . . . Piercing . | . . . . . Highest Corruption 3 | . . . . 3 Average Corruption 2 | . . . . 2 Corruption Purged . | . . . . . Corruption Blocked . | . . . . . Overload Shots . | . . . . . Overflow Damage . | . . . . . Projectiles . | . . . . . Explosions . | . . . . . Melee . | . . . . . Knockbacks . | . . . . . Impact . | . . . . . Kinetic . | . . . . . Secondary . | . . . . . Self-Inflicted Damage . | . . . . . Shots . | . . . . . Rammed 23 | . . . . 23 Targets Rammed 27 | . . 3 1 23 Kicked 4 | . . 3 1 . Crushed . | . . . . . Highest Temperature 514 | . 25 158 144 514 Average Temperature 111 | . 9 66 47 179 Received Heat Transfer 1578 | . 216 150 33 1179 Effects 5 | . . . . 5 Shutdowns 1 | . . . . 1 Energy Bleed 1 | . . . . 1 Matter Decay 1 | . . . . 1 Damage (minor) 2 | . . . . 2 Siege Activations . | . . . . . Robots Corrupted . | . . . . . Combat Hostiles . | . . . . . Parts Fried . | . . . . . Impact Corruptions . | . . . . . Robots Melted 1 | . . . . 1 Combat Hostiles 1 | . . . . 1 Parts Melted 6 | . . . 3 3 Heat Transferred 3774 | . . 555 1369 1850 Parts Sabotaged . | . . . . . Parts Stolen . | . . . . . Parts Stripped . | . . . . . Power Chain Reactions . | . . . . . Alert | -11 -10 -10 -9 -8 ------- Run | Yrd Mat Min Mat Mat Peak Influence 230 | . 161 185 230 195 Initial 44 | . . 5 20 44 Average 92 | . 70 87 107 110 Maximum Alert Level 1 | . . . 1 . Low Security (%) 93 | 100 100 100 76 100 Level 1 6 | . . . 23 . Level 2 . | . . . . . Level 3 . | . . . . . Level 4 . | . . . . . Level 5 . | . . . . . High Security . | . . . . . Max Security . | . . . . . Squads Dispatched 3 | . 1 1 . 1 Investigation . | . . . . . Extermination . | . . . . . Reinforcement 2 | . 1 . . 1 Assault 1 | . . 1 . . Garrison . | . . . . . Intercept . | . . . . . Searches Triggered . | . . . . . Construction Impeded . | . . . . . Haulers Reinforced . | . . . . . Active Scanning Responses . | . . . . . Cargo Convoy Interrupts . | . . . . . Stealth | -11 -10 -10 -9 -8 --------- Run | Yrd Mat Min Mat Mat Distress Signals 2 | . . . 1 1 Communications Jammed . | . . . . . Distress Signals . | . . . . . Times Spotted 48 | . 10 11 16 11 Peak Tracking Total 5 | . 3 4 4 5 Tactical Retreats 1 | . 1 . . . Traps | -11 -10 -10 -9 -8 ------- Run | Yrd Mat Min Mat Mat Traps Triggered . | . . . . . Indirectly . | . . . . . Trap Hack Attempts . | . . . . . Triggered . | . . . . . Disarmed . | . . . . . Reprogrammed . | . . . . . Reused . | . . . . . Traps Extracted . | . . . . . Installed . | . . . . . Triggered . | . . . . . Machines | -11 -10 -10 -9 -8 ---------- Run | Yrd Mat Min Mat Mat Machines Disabled . | . . . . . Max in Single Turn . | . . . . . Machines Repaired . | . . . . . Machines Dismantled . | . . . . . Machines Sabotaged . | . . . . . Overloaded Fab Kills . | . . . . . Hacking | -11 -10 -10 -9 -8 --------- Run | Yrd Mat Min Mat Mat Machines Accessed 9 | . 3 . 4 2 Terminals 8 | . 3 . 3 2 Fabricators . | . . . . . Repair Stations . | . . . . . Recycling Units 1 | . . . 1 . Scanalyzers . | . . . . . Garrison Access . | . . . . . Total Hacks 26 | . 13 . 8 5 Successful 14 | . 5 . 7 2 Failed 12 | . 8 . 1 3 Catastrophic 1 | . . . 1 . Database Lockouts . | . . . . . Manual 5 | . 4 . . 1 Terminals 24 | . 13 . 6 5 Fabricators . | . . . . . Repair Stations . | . . . . . Recycling Units 2 | . . . 2 . Scanalyzers . | . . . . . Garrison Access . | . . . . . Terminal Hacks 12 | . 5 . 5 2 Record 3 | . . . 2 1 Robot Analysis 1 | . 1 . . . Branch Access Points 1 | . 1 . . . Emergency Access Points 1 | . . . . 1 Unreport Threat 2 | . 1 . 1 . Dispatch Records 1 | . . . 1 . Hauler Manifests 1 | . 1 . . . Zone Layout 2 | . 1 . 1 . Fabricator Hacks . | . . . . . Repair Station Hacks . | . . . . . Recycling Unit Hacks 2 | . . . 2 . Report Inventory 1 | . . . 1 . Retrieve Matter 1 | . . . 1 . Scanalyzer . | . . . . . Garrison Access Hacks . | . . . . . Unauthorized Hacks . | . . . . . Terminals . | . . . . . Fabricators . | . . . . . Repair Stations . | . . . . . Recycling Units . | . . . . . Scanalyzers . | . . . . . Garrison Access . | . . . . . Data Cores Recovered 1 | . 1 . . . Used 1 | . 1 . . . Hacking Detections 8 | . 3 . 3 2 Full Trace Events . | . . . . . Feedback Events . | . . . . . Feedback Blocked . | . . . . . Robot Schematics Acquired . | . . . . . Robots Built . | . . . . . Authchips . | . . . . . Time . | . . . . . Total Robot Build Rating . | . . . . . Part Schematics Acquired . | . . . . . Parts Built . | . . . . . Authchips . | . . . . . Time . | . . . . . Total Part Build Rating . | . . . . . Parts Repaired . | . . . . . Time . | . . . . . Parts Recycled . | . . . . . Recycled Matter . | . . . . . Retrieved Matter 23 | . . . 23 . Retrieved Components . | . . . . . Parts Scanalyzed . | . . . . . Part Schematics Acquired . | . . . . . Parts Damaged . | . . . . . Bothacking | -11 -10 -10 -9 -8 ------------ Run | Yrd Mat Min Mat Mat Used RIF Installer . | . . . . . Robots Hacked . | . . . . . Non-combat . | . . . . . Combat . | . . . . . Robot Hacks Applied . | . . . . . Relay Couplers Released . | . . . . . Fabnet Peak Effective % . | . . . . . Robots Rewired . | . . . . . Allies Hacked . | . . . . . Hacks Repelled . | . . . . . Allies | -11 -10 -10 -9 -8 -------- Run | Yrd Mat Min Mat Mat Total Allies 2 | . . 2 . . Largest Group 2 | . . 2 1 . Highest-Rated Group 47 | . . 47 31 . Highest-Rated Ally 31 | . . 31 31 . Total Orders . | . . . . . Ally Attacks 24 | . . 23 1 . Total Damage 304 | . . 284 20 . Kills 5 | . . 4 1 . Allies Corrupted . | . . . . . Allies Melted . | . . . . . Intel | -11 -10 -10 -9 -8 ------- Run | Yrd Mat Min Mat Mat Robot Analysis Total 1 | . 1 . . . Derelict Logs Recovered 1 | . . 1 . . Drone Launches . | . . . . . Drone Recoveries . | . . . . . Exploration | -11 -10 -10 -9 -8 ------------- Run | Yrd Mat Min Mat Mat Turns Passed 2090 | 65 417 549 595 464 Spaces Moved 1203 | 49 219 358 370 207 Core 5 | 3 . . . 2 Treads . | . . . . . Legs 1198 | 46 219 358 370 205 Wheels . | . . . . . Hover . | . . . . . Flight . | . . . . . Fastest Speed 50 | 50 120 120 120 120 Average Speed 120 | 115 120 120 120 124 Slowest Speed 600 | 120 120 120 120 600 Overloaded Moves . | . . . . . Propulsion Burnouts . | . . . . . Robots Hopped . | . . . . . Cave-ins Triggered . | . . . . . Exploration Rate (%) 26 | 3 31 56 25 15 Regions Visited 4 Branch Regions 1 Pre-discovered Areas 1 | . . 1 . . Known Exits Taken 1 | . 1 . . . Unknown Exits Taken 3 | 1 . 1 1 . Scrap Searched . | . . . . . Spaces Dug . | . . . . . Terrain Destroyed 8 | . . . 8 . Melee . | . . . . . Projectile . | . . . . . AOE 8 | . . . 8 . Terrain Rammed . | . . . . . Walls Destroyed . | . . . . . Machines Disabled . | . . . . . Actions | -11 -10 -10 -9 -8 --------- Run | Yrd Mat Min Mat Mat Total 1508 | 54 283 420 474 277 Wait 40 | . 8 4 28 . Move 1199 | 48 218 357 369 207 Hop . | . . . . . Pick Up 21 | . 4 3 11 3 Fast Attach 14 | 6 1 3 3 1 Attach 11 | . . 1 4 6 Detach 2 | . . 1 1 . Swap 17 | . 3 5 8 1 Drop 24 | . . 7 15 2 Fire 153 | . 49 36 34 34 Melee . | . . . . . Ram 23 | . . . . 23 Kick 4 | . . 3 1 . Crush . | . . . . . Escape Stasis . | . . . . . Rewire . | . . . . . Trap . | . . . . . Miscellaneous . | . . . . . Route ------- -11/Scrapyard -10/Materials -10/Mines -9/Materials -8/Materials History --------- Turn | Location | Event 11 | -11/Scrapyard | Discovered new exit (range 15) 66 | -11/Scrapyard | Entered Materials 99 | -10/Materials | Identified exit to Mines 304 | -10/Materials | Build established: Mutant 483 | -10/Materials | Entered Mines 590 | -10/Mines | Assisted by bots powering up and referring to "LRC-V3" 736 | -10/Mines | Received a Rocket Launcher from a helpful Derelict 784 | -10/Mines | Met a Derelict testing a Signal Generator 901 | -10/Mines | Build established: Scavenger-Mutant 1020 | -10/Mines | Discovered new exit (range 12) 1032 | -10/Mines | Entered Materials 1032 | -9/Materials | Accompanied by 1 ally 1032 | -9/Materials | Evolved 2 slots: Propulsion x2 1567 | -9/Materials | Discovered new exit (range 13) 1627 | -9/Materials | Entered another Materials area 1627 | -8/Materials | Evolved 2 slots: Propulsion x1, Utility x1 2008 | -8/Materials | Lost 4 parts (1p2n1w) 2064 | -8/Materials | Core integrity fell below 50% 2085 | -8/Materials | Core integrity fell below 20% 2086 | -8/Materials | Lost 9 parts (5n2u2w) 2091 | -8/Materials | Destroyed by G-47 Trooper with Particle Gun Last Messages --------------- Destabilizing: System corrupted (+1). Slammed into G-47 Trooper. Destabilizing: System corrupted (+2). Field Laser destroyed. Aluminum Leg destroyed. Slammed into G-47 Trooper. Destabilizing: Core damaged (-22). Slammed into G-47 Trooper. Acquired 9 matter. Slammed into G-47 Trooper. Aluminum Leg destroyed. Slammed into G-47 Trooper. Field Laser destroyed. Critical hit (Burn: +37). Slammed into G-47 Trooper. Aluminum Leg destroyed. Slammed into G-47 Trooper. Aluminum Leg destroyed. Slammed into G-47 Trooper. Destabilizing: Core damaged (-11). Map ----- +----------------------------------------------------+ | ???????????????# ##?[= ???? | | ???????????????# #??? ????? | | ???????????????# ######+#+##???? | | ???????????????# #???? | | ???????????????###########T## #???? | | ?????????????????????????#### #???? | | ????????????????????????????# #???? | | ??????????????????########### #???? | | ??????????????????# ## #???? | | ??????????????????# ## ##??? | | ??????????????????# # #??? | | ??????????????????# # !#??? | | ??????????????????# + #??? | | ??????????????????# # #??? | | ??????????????????# # #??? | | ??????????????????+ # #??? | | ??????????????????# ### ###??? | | ??????????????????##########?# %#????? | | ?????????????????????????????# ###### | | ?????????????????????????????# # # | | ?????????????????????????????#% # ""# | | ??????# ###################### # T"# | | ??????# u % # ""# | | ??????# k + # | | ??????# % # # | | ??????# ###########%g%%%%@ """ # # | | ??????????????????#%#####g """ # !# | | ??????????????????#%#???# """ # # | | ?????????????????##/##### ###### | | ?????????????????#%% =* # #????? | | ?????????????????#% = =# """ #????? | | ?????????????????# " # """ #????? | | ?????????????????# """ # """ #????? | | ?????????????????# """ # #????? | | ?????????????????# # #????? | | ???????????????#######+## #????? | | ???????? % ####?? | | ???????? !##? | | ???????????######+##+######+## !#? | | ????????????????????????? # ! #? | | ???????????????????????? # !#? | | ??????????????????????? #### !#? | | ????????????????????? #??# !##? | | ???????????????????? #??####?? | | ???????????????????# #???????? | | ???????????????????# #???????? | | ???????????????????# #???????? | | ???????????????????###########???????? | | ?????????????????????????????????????? | | ?????????????????????????????????????? | +----------------------------------------------------+ Best States ------------- Heat Dissipation 45 Energy Generation 18 Energy Capacity 250 Matter Stores 300 Matter Capacity 300 Sight Range 16 Terrain Scan Density 10 Armor Coverage 225 Evasion (%) 55 Offensive Hacking 10 Item Schematics ----------------- None Robot Schematics ------------------ None Fabricated ------------ Nothing Alien Tech Used ----------------- None Achievements -------------- Dynamic Key Everything Is Under Control Challenges ------------ None Game ------ Seed CobblerBiomechanicalInverter Manual? 0 Play Time 00:27:17 Cumulative 4.6 hours Start 2024.03.30 @ 23:58:46 End 2024.03.31 @ 00:27:25 Sessions 1 Manual Loads 0 Difficulty Rogue Special Mode None Game No. 10 Rogue 10 Adventurer 0 Explorer 0 Win Type - Total 0 Types 0/0/0/0/0/0/0/0/0 Lore% 4 Gallery% 10 Achievement% 9 Wizard Run 0 Options --------- Layout 1 ASCII 0 Keyboard 0 Movement Arrows Keybinds 0 Fullscreen 1 Font 36/Smallcaps Map View 50x40 Zoom Use 0% Tactical HUD 0 Map Filters NONE Filters NONE Steam 1 RUN: b344ce89-f309-49e2-905e-182927f07c10